bitfinex-derivatives/quotes_ETHF0:USTF0_20250317
["timestamp","ask_amount","ask_price","bid_price","bid_amount"]
[1742169904434,4.1886,1890.7,1890.6,2.23847]
[1742169904730,3.467,1890.7,1890.6,2.23847]
[1742169905032,0.84619,1890.8,1890.7,0.84623]
[1742169905229,0.84619,1890.8,1890.7,2.93483]
[1742169905628,2.24809,1890.8,1890.7,2.93483]
[1742169906729,1.4019,1890.8,1890.7,2.93483]
[1742169907334,0.84618,1890.8,1890.7,2.0886]
[1742169907536,2.19688,1890.8,1890.7,2.93479]
[1742169907737,2.19688,1890.8,1890.7,1.3833]
[1742169909141,1.3507,1890.8,1890.7,2.22953]
[1742169909732,8.7902,1890.9,1890.8,0.84618]
[1742169910037,9.63634,1890.9,1890.8,2.17608]
[1742169910440,3.2078,1890.9,1890.8,1.3299]
[1742169910639,6.6748,1890.9,1890.8,2.17608]
[1742169910934,3.467,1890.9,1890.8,2.17608]
[1742169911437,0.7129,1891.1,1891.0,0.84609]
[1742169911642,4.6318,1891.2,1891.1,0.84605]
[1742169911841,8.9448,1891.2,1891.1,0.84605]
[1742169912634,5.737,1891.2,1891.1,0.84605]
[1742169912830,3.2078,1891.5,1891.0,4.16636]
[1742169913036,5.71164,1891.4,1891.1,1.324]
[1742169913243,4.31294,1891.4,1891.3,0.84596]
[1742169913934,0.84596,1891.3,1891.2,0.85391176]
[1742169914341,4.31295,1891.4,1891.3,0.84596]
[1742169914640,4.31295,1891.4,1891.3,2.16996]
[1742169914943,0.84591,1891.4,1891.3,2.16995]
[1742169915340,0.84596,1891.3,1891.2,0.00794176]
[1742169915735,0.84596,1891.3,1891.2,0.85391176]
[1742169916034,4.32595,1891.4,1891.2,1.43764176]
[1742169916235,3.48,1891.4,1891.3,0.84596]
[1742169916844,3.48,1891.4,1891.3,2.27566]
[1742169917044,2.2998,1891.5,1891.3,2.27566]
[1742169917344,5.7788,1891.5,1891.4,1.4297]
[1742169917537,5.7788,1891.5,1891.4,2.27561]
[1742169917737,2.2998,1891.5,1891.4,2.27561]
[1742169918040,4.9319,1891.5,1891.4,2.27561]
[1742169919041,5.77777,1891.5,1891.4,2.27561]
[1742169919539,4.9319,1891.5,1891.4,2.27561]
[1742169919741,5.77777,1891.5,1891.4,2.27561]
[1742169920132,5.77777,1891.5,1891.4,1.4297]
[1742169920537,0.84596,1891.4,1891.2,1.55513176]
[1742169920737,0.84596,1891.3,1891.2,0.00794176]
[1742169921136,0.84596,1891.3,1891.2,1.33234176]
[1742169921647,0.84596,1891.3,1891.2,0.00794176]
[1742169922250,8.1397,1891.5,1891.2,2.17362176]
[1742169922447,0.84591,1891.4,1891.3,1.3197]
[1742169922847,0.84591,1891.4,1891.3,2.16566]
[1742169923239,5.7778,1891.5,1891.3,2.16563]
[1742169923435,5.7778,1891.5,1891.4,1.3197]
[1742169924138,8.9856,1891.5,1891.4,1.3197]
[1742169925750,0.84596,1891.3,1891.2,0.00794176]
[1742169925950,0.84596,1891.3,1891.2,1.38404176]
[1742169926847,0.84592,1891.4,1891.3,0.84594]
[1742169927050,0.84591,1891.4,1891.2,2.23001176]
[1742169927452,0.84591,1891.4,1891.3,1.3761]
[1742169927843,0.84591,1891.4,1891.3,2.22206]
[1742169928148,0.84591,1891.4,1891.3,1.3761]
[1742169928547,0.84596,1891.3,1891.2,0.00794176]
[1742169928937,0.84596,1891.3,1891.2,1.40624176]
[1742169930450,1.4089,1891.4,1891.3,0.84596]
[1742169930745,3.471,1891.6,1891.5,0.84587]
[1742169930952,0.84582,1891.6,1891.5,0.84587]
[1742169931153,8.97628,1891.7,1891.6,0.84582]
[1742169931358,8.97628,1891.7,1891.4,2.7844]
[1742169931359,0.84582,1891.6,1891.5,2.29465]
[1742169931538,2.29652,1891.6,1891.5,2.29465]
[1742169931743,2.29652,1891.6,1891.5,1.4488]
[1742169932155,2.29652,1891.6,1891.5,2.29467]
[1742169932847,2.29652,1891.6,1891.5,1.4488]
[1742169934262,2.29652,1891.6,1891.5,2.29467]
[1742169934658,4.31282,1891.6,1891.5,2.29467]
[1742169934960,3.467,1891.6,1891.5,2.29467]
[1742169935154,0.84582,1891.6,1891.5,1.4488]
[1742169935353,0.84576,1891.8,1891.7,0.84573]
[1742169935555,4.05354,1891.9,1891.8,0.84573]
[1742169935763,0.84578,1891.8,1891.7,0.84576]
[1742169936063,0.84578,1891.8,1891.7,3.01426]
[1742169936263,2.23993,1891.9,1891.8,0.84573]
[1742169936463,2.23993,1891.9,1891.8,3.01683]
[1742169937559,1.3942,1891.9,1891.4,6.0]
[1742169937760,4.05367,1891.5,1891.4,7.3251]
[1742169937970,7.52367,1891.5,1891.4,7.3251]
[1742169938256,7.52367,1891.5,1891.4,6.0]
[1742169938461,0.84591,1891.4,1891.3,1.3251]
[1742169938658,0.84596,1891.3,1891.2,0.00794176]
[1742169939164,2.19556,1891.3,1891.2,1.33304176]
[1742169939352,5.40336,1891.3,1891.2,1.33304176]
[1742169939556,5.40336,1891.3,1891.2,0.00794176]
[1742169940357,2.19556,1891.3,1891.2,0.00794176]
[1742169940862,5.40336,1891.3,1891.2,0.00794176]
[1742169942067,4.5574,1891.3,1891.2,0.85394176]
[1742169942873,1.3496,1891.3,1891.2,0.85394176]
[1742169943363,1.54844,1891.4,1891.2,0.00794176]
[1742169943565,2.96574,1891.4,1891.2,1.54580176]
[1742169943766,2.96574,1891.4,1891.3,1.3293]
[1742169944366,0.84596,1891.3,1891.2,0.00794176]
[1742169944558,2.26326,1891.3,1891.2,0.00794176]
[1742169945259,2.26326,1891.3,1891.2,1.33724176]
[1742169945965,0.84596,1891.3,1891.2,2.18324176]
[1742169946266,4.31296,1891.3,1891.2,2.18324176]
[1742169946470,3.467,1891.3,1891.2,2.18324176]
[1742169946666,4.31296,1891.3,1891.2,2.18324176]
[1742169946866,5.64396,1891.3,1891.2,1.33724176]
[1742169948070,5.64396,1891.3,1891.2,0.00794176]
[1742169952964,5.64396,1891.3,1891.2,1.34254176]
[1742169953368,5.64396,1891.3,1891.2,0.00794176]
[1742169956566,0.84596,1891.3,1891.2,0.00794176]
[1742169956970,2.18676,1891.3,1891.2,1.31944176]
[1742169959778,0.84596,1891.3,1891.2,2.16544176]
[1742169960269,0.84596,1891.3,1891.2,1.31944176]
[1742169960470,2.19996,1891.3,1891.2,1.31944176]
[1742169964072,2.19996,1891.3,1891.2,0.00794176]
[1742169966779,2.19996,1891.3,1891.2,1.44454176]
[1742169966981,4.31196,1891.3,1891.2,1.44454176]
[1742169967784,4.31196,1891.3,1891.2,2.12664176]
[1742169968175,0.84596,1891.3,1891.2,2.12664176]
[1742169968375,4.31196,1891.3,1891.2,2.12664176]
[1742169969383,5.63176,1891.3,1891.2,2.12664176]
[1742169971074,5.63176,1891.3,1891.2,2.97264176]
[1742169971279,3.2078,1891.4,1891.2,2.12664176]
[1742169971480,0.7161,1891.5,1891.4,0.84591]
[1742169971481,2.0432,1891.5,1891.4,0.84591]
[1742169971788,3.466,1891.5,1891.4,0.84587]
[1742169972174,3.466,1891.5,1891.4,2.21007]
[1742169972175,4.31187,1891.5,1891.4,2.21007]
[1742169972888,5.63897,1891.5,1891.4,1.3642]
[1742169974385,4.31187,1891.5,1891.4,1.3642]
[1742169974589,5.63787,1891.5,1891.4,1.3642]
[1742169975084,4.31187,1891.5,1891.4,1.3642]
[1742169975285,5.63787,1891.5,1891.4,1.3642]
[1742169977187,4.792,1891.5,1891.4,1.3642]
[1742169977485,5.63787,1891.5,1891.4,1.3642]
[1742169977684,5.63787,1891.5,1891.4,2.21011]
[1742169977887,4.792,1891.5,1891.4,2.21011]
[1742169978488,5.63787,1891.5,1891.4,2.21011]
[1742169978689,4.792,1891.5,1891.4,2.21011]
[1742169979576,5.63787,1891.5,1891.4,1.3642]
[1742169980085,5.63787,1891.5,1891.4,2.21011]
[1742169980890,4.76214,1891.6,1891.4,2.21011]
[1742169981078,6.17054,1891.6,1891.5,1.4393]
[1742169981281,9.63654,1891.6,1891.5,1.4393]
[1742169983589,0.84596,1891.3,1891.2,0.00794176]
[1742169983797,0.84594,1891.4,1891.2,0.85394176]
[1742169984091,0.84594,1891.4,1891.2,0.00794176]
[1742169984484,0.84594,1891.4,1891.2,0.85393176]
[1742169984989,0.84594,1891.4,1891.3,1.3441]
[1742169985987,1.57184,1891.4,1891.3,1.3441]
[1742169989887,4.77964,1891.4,1891.3,1.3441]
[1742169990793,0.84596,1891.3,1891.2,0.00794176]
[1742169990995,5.72216,1891.3,1891.2,0.00794176]
[1742169991191,5.72216,1891.3,1891.2,1.44484176]
[1742169994997,3.466,1891.3,1891.2,2.29084176]
[1742169995191,4.31196,1891.3,1891.2,2.29084176]
[1742169995592,5.65386,1891.3,1891.2,2.29084176]
[1742169995794,5.65386,1891.3,1891.2,1.44484176]
[1742169999596,6.6738,1891.4,1891.2,2.29082176]
[1742169999796,2.25046,1891.3,1891.2,2.29082176]
[1742170000099,2.25046,1891.3,1891.2,0.00794176]
[1742170000694,2.25046,1891.3,1891.2,0.85394176]
[1742170001090,1.4045,1891.3,1891.2,0.85394176]
[1742170001292,2.25046,1891.3,1891.2,0.85394176]
[1742170001489,1.4045,1891.3,1891.2,0.85394176]
[1742170001789,2.25046,1891.3,1891.2,0.85394176]
[1742170004304,2.25046,1891.3,1891.2,0.00794176]
[1742170004903,2.25046,1891.3,1891.2,0.85394176]
[1742170005500,6.6738,1891.4,1891.3,0.84596]
[1742170005897,7.51971,1891.4,1891.3,0.84596]
[1742170006206,8.87661,1891.4,1891.3,0.84596]
[1742170006418,9.54041,1891.4,1891.3,0.84596]
[1742170006806,6.33261,1891.4,1891.3,0.84596]
[1742170007208,5.4867,1891.4,1891.3,0.84596]
[1742170007408,6.33261,1891.4,1891.3,0.84596]
[1742170008114,1.3569,1891.4,1891.3,0.84596]
[1742170008306,1.5452,1891.5,1891.4,0.84591]
[1742170008606,0.8459,1891.5,1891.4,0.84591]
[1742170009205,2.2727,1891.5,1891.4,0.84591]
[1742170009511,4.05356,1891.8,1891.7,0.84575]
[1742170009712,0.84576,1891.8,1891.7,0.84575]
[1742170009910,2.17676,1891.8,1891.7,0.84575]
[1742170010309,2.17676,1891.8,1891.7,2.26295]
[1742170012311,2.17676,1891.8,1891.7,1.4172]
[1742170012508,4.5388,1891.8,1891.2,0.00794176]
[1742170012820,0.84596,1891.3,1891.2,0.00794176]
[1742170013015,4.31096,1891.3,1891.2,0.00794176]
[1742170013209,4.31096,1891.3,1891.2,1.45164176]
[1742170013210,7.16616,1891.3,1891.2,1.45164176]
[1742170013509,7.16616,1891.3,1891.2,0.00794176]
[1742170014321,7.16616,1891.3,1891.2,1.45164176]
[1742170016530,6.3202,1891.3,1891.2,1.45164176]
[1742170016723,7.16616,1891.3,1891.2,1.45164176]
[1742170020331,7.16616,1891.3,1891.2,0.00794176]
[1742170025041,0.84623,1890.7,1890.6,0.7162]
[1742170025246,6.6728,1890.8,1890.6,0.7162]
[1742170025448,7.51901,1890.8,1890.6,0.7162]
[1742170025845,6.6728,1890.8,1890.6,0.7162]
[1742170026146,3.465,1890.8,1890.6,1.56244]
[1742170026349,4.31118,1890.8,1890.7,1.3273]
[1742170026552,8.1089,1890.8,1890.7,1.3273]
[1742170026844,3.465,1890.8,1890.7,1.3273]
[1742170027048,3.465,1890.8,1890.7,2.17353]
[1742170027440,3.465,1890.8,1890.7,1.9833]
[1742170027646,4.32008176,1890.9,1890.7,2.82953]
[1742170027951,4.32008176,1890.9,1890.6,0.7162]
[1742170027952,4.32008176,1890.9,1890.8,1.3273]
[1742170028251,8.85128176,1890.9,1890.8,1.3273]
[1742170029047,3.47394176,1890.9,1890.8,2.17348]
[1742170029248,0.00794176,1890.9,1890.8,2.17348]
[1742170031559,0.84593,1891.4,1891.3,0.84595]
[1742170031742,4.31191,1891.4,1891.3,0.84595]
[1742170031947,3.466,1891.4,1891.3,0.84595]
[1742170032153,0.84598,1891.3,1891.2,0.84597]
[1742170032350,0.84598,1891.3,1891.2,2.97217]
[1742170032952,0.84598,1891.3,1891.2,2.1262]
[1742170033158,0.84598,1891.3,1891.2,1.4215]
[1742170033451,2.17488,1891.3,1891.2,1.4215]
[1742170033655,0.84596,1891.3,1891.2,1.4215]
[1742170033954,0.84596,1891.3,1891.2,2.2675]
[1742170034347,4.98215,1891.4,1891.2,2.2675]
[1742170034551,4.1362,1891.4,1891.3,2.20006]
[1742170034750,3.466,1891.4,1891.3,2.20006]
[1742170035348,3.466,1891.5,1891.4,0.84591]
[1742170035655,4.31187,1891.5,1891.4,2.0376]
[1742170035855,4.31187,1891.5,1891.4,2.88351]
[1742170036154,3.466,1891.5,1891.4,2.88351]
[1742170036555,4.31187,1891.5,1891.4,2.88351]
[1742170036755,4.6065,1891.7,1891.5,0.84586]
[1742170036756,5.45231,1891.7,1891.5,0.84586]
[1742170036949,5.45228,1891.7,1891.6,1.3541]
[1742170037155,8.91828,1891.7,1891.6,1.3541]
[1742170038655,8.91828,1891.7,1891.6,2.19992]
[1742170038851,8.91828,1891.7,1891.6,1.3541]
[1742170039363,5.45228,1891.7,1891.6,1.3541]
[1742170039562,8.91728,1891.7,1891.6,1.3541]
[1742170039762,7.51858,1891.7,1891.6,1.3541]
[1742170039959,6.6728,1891.7,1891.6,1.3541]
[1742170040167,6.6728,1891.7,1891.6,2.19992]
[1742170040360,6.6728,1891.7,1891.6,1.3541]
[1742170040856,7.51858,1891.7,1891.6,1.3541]
[1742170041060,8.83378,1891.7,1891.6,1.3541]
[1742170045766,6.6728,1891.7,1891.6,1.3541]
[1742170045955,6.6728,1891.7,1891.6,2.19992]
[1742170046463,3.2078,1891.9,1891.6,2.19992]
[1742170046654,3.2078,1891.9,1891.8,0.84573]
[1742170047158,3.2078,1891.9,1891.8,2.95143]
[1742170048558,3.2078,1891.9,1891.8,3.38307105]
[1742170049070,3.2078,1891.9,1891.8,2.95143]
[1742170049463,4.31065,1892.0,1891.9,0.84569]
[1742170049665,0.84563,1892.1,1892.0,0.84564]
[1742170049866,0.84563,1892.1,1892.0,1.52234]
[1742170050070,3.2078,1892.6,1892.0,12.6417]
[1742170050270,0.84543,1892.6,1892.5,0.8454]
[1742170050570,0.84546,1892.5,1892.4,0.84544]
[1742170050868,0.84546,1892.5,1892.4,1.53394]
[1742170051270,0.84538,1892.6,1892.5,0.84542]
[1742170051463,0.84537,1892.7,1892.6,0.84535]
[1742170051665,0.84538,1892.6,1892.5,1.4482]
[1742170051865,0.84538,1892.6,1892.5,1.45614176]
[1742170052265,2.23328,1892.6,1892.5,2.30156176]
[1742170052467,3.465,1892.7,1892.5,1.45614176]
[1742170052764,5.63695,1892.7,1892.6,1.3525]
[1742170053370,4.7916,1892.7,1892.6,2.19788]
[1742170053872,5.63693,1892.7,1892.6,1.3525]
[1742170054472,0.84538,1892.6,1892.5,0.00794176]
[1742170054671,2.17198,1892.6,1892.5,0.00794176]
[1742170055067,2.17198,1892.6,1892.5,1.36044176]
[1742170056175,1.3266,1892.6,1892.5,1.36044176]
[1742170056478,1.3266,1892.6,1892.5,2.20586176]
[1742170057768,2.17198,1892.6,1892.5,1.36044176]
[1742170058772,1.3266,1892.6,1892.5,1.36044176]
[1742170059078,2.17198,1892.6,1892.5,1.36044176]
[1742170062379,2.17198,1892.6,1892.5,0.00794176]
[1742170062682,0.84558,1892.2,1891.9,3.9214]
[1742170062876,0.84563,1892.1,1891.9,4.76707]
[1742170063073,0.84559,1892.2,1892.0,0.84564]
[1742170063674,0.84559,1892.2,1892.1,1.3517]
[1742170064780,2.29989,1892.2,1892.1,1.3517]
[1742170066175,3.01379,1892.2,1892.1,1.3517]
[1742170074083,0.7139,1892.2,1892.1,1.3517]
[1742170074286,0.00794176,1892.3,1892.2,0.84555]
[1742170074587,0.00794176,1892.3,1892.2,1.56555]
[1742170075187,0.00794176,1892.3,1892.2,0.72]
[1742170075488,0.00794176,1892.3,1892.2,0.84555]
[1742170075882,0.00794176,1892.3,1892.2,2.19935]
[1742170076287,0.85345176,1892.3,1892.2,2.19935]
[1742170078594,0.00794176,1892.3,1892.2,2.19935]
[1742170078787,0.85345176,1892.3,1892.2,2.19935]
[1742170078987,0.00794176,1892.3,1892.2,2.19935]
[1742170079591,0.84548,1892.4,1892.3,0.84548]
[1742170079892,0.84548,1892.4,1892.3,6.12888]
[1742170080189,6.6708,1892.7,1892.3,9.89717]
[1742170080388,0.84536,1892.7,1892.6,0.84538]
[1742170080693,3.463,1892.8,1892.5,3.2078]
[1742170080888,0.84537,1892.7,1892.6,2.21446]
[1742170081290,0.84537,1892.7,1892.6,1.3691]
[1742170081987,2.27857,1892.7,1892.6,1.3691]
[1742170082292,2.93547,1892.7,1892.6,1.3691]
[1742170082495,1.5266,1892.8,1892.6,1.3691]
[1742170082689,4.9896,1892.8,1892.6,2.21444]
[1742170082884,6.4228,1892.8,1892.6,2.21444]
[1742170083194,4.30829,1892.8,1892.5,5.32135]
[1742170083492,4.30829,1892.8,1892.7,0.84533]
[1742170084286,7.51608,1892.9,1892.7,0.8453]
[1742170084493,0.84529,1892.8,1892.7,0.8453]
[1742170084885,0.84532,1892.8,1892.6,0.84535]
[1742170085084,0.84532,1892.8,1892.5,3.2078]
[1742170085287,4.30826,1892.9,1892.5,5.32134]
[1742170085490,4.30826,1892.9,1892.8,0.84529]
[1742170085701,3.463,1892.9,1892.8,0.84529]
[1742170086084,0.8452,1893.0,1892.9,0.84524]
[1742170086592,0.8452,1893.0,1892.8,2.26365]
[1742170086781,0.8452,1893.0,1892.9,0.84524]
[1742170086986,6.2274,1893.1,1892.8,2.26365]
[1742170087187,0.84524,1892.9,1892.8,2.26365]
[1742170088594,0.84524,1892.9,1892.8,0.7032]
[1742170089593,5.64539,1893.1,1892.9,0.84522]
[1742170089789,1.3376,1893.0,1892.9,0.84522]
[1742170090295,5.64539,1893.1,1893.0,0.84518]
[1742170090296,4.30717,1893.1,1893.0,0.84518]
[1742170090687,3.462,1893.1,1893.0,0.84518]
[1742170091089,0.8452,1893.0,1892.9,1.51914176]
[1742170091283,0.8452,1893.0,1892.9,0.00794176]
[1742170091496,2.8573,1893.0,1892.9,0.85318176]
[1742170091697,2.8573,1893.0,1892.9,0.00794176]
[1742170092002,2.8573,1893.0,1892.9,0.85318176]
[1742170092498,2.8573,1893.0,1892.9,0.00794176]
[1742170092890,3.5168,1893.0,1892.9,0.00794176]
[1742170096094,3.2078,1893.2,1892.9,0.00794176]
[1742170096395,3.2078,1893.4,1893.3,0.84506]
[1742170096594,3.2078,1893.4,1893.1,0.671]
[1742170096996,3.2078,1893.4,1893.3,0.84506]
[1742170097194,3.2078,1893.8,1893.3,2.11267]
[1742170097393,3.2078,1893.8,1893.3,9.2078]
[1742170097596,0.84502,1893.5,1893.3,10.05286]
[1742170097791,1.4385,1893.4,1893.1,3.8788]
[1742170097999,1.3839,1893.3,1893.2,0.84508]
[1742170098198,1.4385,1893.4,1893.1,3.8788]
[1742170098397,2.28353,1893.4,1893.2,0.84507]
[1742170098699,0.84506,1893.3,1893.2,0.84506]
[1742170098897,1.4392,1893.3,1893.2,0.84506]
[1742170099200,1.3839,1893.5,1893.4,0.84502]
[1742170099397,2.8231,1893.5,1893.4,0.84502]
[1742170099796,1.3839,1893.5,1893.4,0.84502]
[1742170100101,2.22887,1893.5,1893.2,0.6605]
[1742170100298,2.8231,1893.5,1893.4,0.84502]
[1742170100797,1.3839,1893.5,1893.4,0.84502]
[1742170100997,1.3839,1893.5,1893.4,2.22112]
[1742170101202,2.22887,1893.5,1893.4,2.22112]
[1742170101386,3.58577,1893.5,1893.4,1.3761]
[1742170102094,0.84511,1893.2,1893.1,3.8788]
[1742170102294,0.84511,1893.2,1893.1,3.2078]
[1742170102598,0.84516,1893.1,1892.9,1.51994176]
[1742170102903,3.469,1893.3,1893.2,0.84511]
[1742170103400,2.20196,1893.3,1893.2,0.84511]
[1742170103600,2.20196,1893.3,1893.1,2.20813]
[1742170104100,0.84506,1893.3,1893.2,1.363]
[1742170104599,0.84515,1893.1,1893.0,3.2078]
[1742170104808,0.84515,1893.1,1893.0,4.582]
[1742170105199,1.50265,1893.1,1893.0,4.582]
[1742170106504,1.50265,1893.1,1893.0,1.3742]
[1742170106703,1.50265,1893.1,1892.9,0.00794176]
[1742170106704,0.8452,1893.0,1892.9,0.00794176]
[1742170107003,4.3152,1893.0,1892.9,0.00794176]
[1742170114398,7.523,1893.0,1892.9,0.00794176]
[1742170114598,7.523,1893.0,1892.6,0.84538]
[1742170114599,0.84535,1892.7,1892.6,0.84538]
[1742170114798,0.84535,1892.7,1892.6,1.3581]
[1742170115702,0.84535,1892.7,1892.6,2.02847537]
[1742170115902,1.51145,1892.7,1892.6,2.02847537]
[1742170116301,1.51145,1892.7,1892.6,2.87385537]
[1742170116505,1.51145,1892.7,1892.6,2.20348]
[1742170117001,4.97345,1892.7,1892.6,2.20348]
[1742170117601,4.97345,1892.7,1892.6,1.3581]
[1742170119109,4.97345,1892.7,1892.6,2.20348]
[1742170119609,4.97345,1892.7,1892.6,2.87356191]
[1742170120005,4.30735,1892.7,1892.6,2.87356191]
[1742170121803,5.73345,1892.7,1892.6,2.87356191]
[1742170122408,4.30735,1892.7,1892.6,2.87356191]
[1742170122604,0.84535,1892.7,1892.6,2.87356191]
[1742170123213,0.00794176,1892.8,1892.7,0.84533]
[1742170123415,0.00794176,1892.8,1892.7,6.80603]
[1742170123604,0.00794176,1892.8,1892.7,7.47611191]
[1742170124109,0.84512,1893.2,1893.1,0.84513]
[1742170124308,5.0186,1893.3,1893.2,0.84511]
[1742170124509,1.53085,1893.4,1893.3,0.84506]
[1742170124718,4.99285,1893.4,1893.3,0.84506]
[1742170125414,3.462,1893.5,1893.4,0.84502]
[1742170125617,4.8702,1893.5,1893.4,0.84502]
[1742170126014,4.30697,1893.5,1893.4,0.84502]
[1742170126210,2.094,1893.7,1893.3,6.69079]
[1742170126412,4.05267,1893.8,1893.7,0.84488]
[1742170126711,7.51467,1893.8,1893.7,0.84488]
[1742170126919,0.84488,1893.7,1893.6,1.42874176]
[1742170127108,2.25308,1893.7,1893.6,1.42874176]
[1742170127415,5.71708,1893.7,1893.6,1.42874176]
[1742170128715,5.71708,1893.7,1893.6,2.27367176]
[1742170129618,5.71708,1893.7,1893.6,1.42874176]
[1742170132025,8.92488,1893.7,1893.6,0.00794176]
[1742170135625,0.84506,1893.3,1893.2,3.2078]
[1742170135926,0.84511,1893.2,1893.1,1.4097]
[1742170136128,2.24141,1893.2,1893.1,1.4097]
[1742170136522,4.1616,1893.4,1893.1,2.95845248]
[1742170136523,0.84509,1893.3,1893.1,2.95845248]
[1742170136820,1.3963,1893.3,1893.2,2.25481]
[1742170137028,2.24136,1893.3,1893.2,1.4097]
[1742170137716,2.24136,1893.3,1893.2,2.25481]
[1742170137916,0.84506,1893.3,1893.2,1.4097]
[1742170138125,0.00794176,1893.4,1893.3,0.84506]
[1742170138323,0.00794176,1893.4,1893.3,2.90896]
[1742170138524,0.00794176,1893.4,1893.3,3.6120996]
[1742170139428,0.00794176,1893.4,1893.3,4.7370272]
[1742170140630,0.85296176,1893.4,1893.3,3.6120996]
[1742170141030,0.00794176,1893.4,1893.3,3.6120996]
[1742170141528,0.00794176,1893.4,1893.3,4.2985996]
[1742170141718,0.85296176,1893.4,1893.3,4.2985996]
[1742170141922,0.00794176,1893.4,1893.3,4.2985996]
[1742170142322,0.00794176,1893.4,1893.3,5.47956112]
[1742170142524,0.85296176,1893.4,1893.3,5.47956112]
[1742170142727,2.19226176,1893.4,1893.3,3.28880112]
[1742170142930,5.65326176,1893.4,1893.3,3.28880112]
[1742170143228,6.34336176,1893.4,1893.3,2.1078396]
[1742170146435,5.49834176,1893.4,1893.3,2.1078396]
[1742170146629,0.00794176,1893.4,1893.3,2.1078396]
[1742170146828,2.96246176,1893.4,1893.3,2.9528996]
[1742170147337,2.96246176,1893.4,1893.3,2.1078396]
[1742170148838,2.96246176,1893.4,1893.3,0.7031396]
[1742170149035,0.84515,1893.1,1893.0,0.00794176]
[1742170149343,7.51395,1893.1,1893.0,0.00794176]
[1742170150133,4.30615,1893.1,1893.0,0.00794176]
[1742170150441,4.30615,1893.1,1893.0,1.39994176]
[1742170152041,4.30615,1893.1,1893.0,0.00794176]
[1742170152243,6.40815,1893.1,1893.0,0.00794176]
[1742170153136,0.84524,1892.9,1892.8,3.2078]
[1742170153744,0.84533,1892.7,1892.6,1.3545]
[1742170154440,2.27393,1892.7,1892.6,1.3545]
[1742170154641,2.27393,1892.7,1892.6,2.52952129]
[1742170157243,2.27393,1892.7,1892.6,1.3545]
[1742170161441,2.27393,1892.7,1892.6,2.08768378]
[1742170161944,2.27393,1892.7,1892.6,1.3545]
[1742170168440,2.99953,1892.7,1892.6,1.3545]
[1742170169145,3.462,1892.8,1892.6,1.3545]
[1742170169351,3.462,1892.8,1892.7,1.50149]
[1742170169549,2.068,1893.0,1892.7,4.70929]
[1742170169745,0.8452,1893.0,1892.9,0.84524]
[1742170169945,4.3072,1893.0,1892.9,0.84524]
[1742170170146,3.462,1893.0,1892.9,0.84524]
[1742170170347,3.462,1893.0,1892.9,2.28676438]
[1742170170545,3.462,1893.0,1892.9,1.44152438]
[1742170170546,4.3072,1893.0,1892.9,1.44152438]
[1742170170952,4.3072,1893.0,1892.9,2.80362438]
[1742170171153,4.3072,1893.0,1892.9,2.09502438]
[1742170171338,5.0134,1893.0,1892.9,2.09502438]
[1742170172148,5.0134,1893.0,1892.9,0.73292438]
[1742170172445,8.2212,1893.0,1892.9,0.73292438]
[1742170172646,0.84538,1892.6,1892.5,0.00794176]
[1742170172851,4.30738,1892.6,1892.5,0.00794176]
[1742170173053,4.30738,1892.6,1892.5,2.01889383]
[1742170173252,4.30738,1892.6,1892.5,1.17347383]
[1742170173653,4.30738,1892.6,1892.5,2.54517383]
[1742170174159,5.72648,1892.6,1892.5,2.54517383]
[1742170174550,5.72648,1892.6,1892.5,3.39059383]
[1742170174551,3.462,1892.6,1892.5,3.39059383]
[1742170174757,4.30738,1892.6,1892.5,3.39059383]
[1742170175347,4.30738,1892.6,1892.5,2.54517383]
[1742170176253,3.462,1892.6,1892.5,3.39059383]
[1742170176857,4.30738,1892.6,1892.5,3.39059383]
[1742170177056,3.462,1892.6,1892.5,4.84944928]
[1742170177661,4.30738,1892.6,1892.5,2.22506176]
[1742170177861,3.462,1892.6,1892.5,5.66483196]
[1742170181467,3.462,1892.6,1892.5,4.85212122]
[1742170181671,4.30738,1892.6,1892.5,4.00670122]
[1742170182359,6.37108,1892.6,1892.5,2.54722374]
[1742170183163,6.37108,1892.6,1892.5,3.39264374]
[1742170183363,6.37108,1892.6,1892.5,2.54722374]
[1742170183564,6.37108,1892.6,1892.5,3.39264374]
[1742170184168,0.84543,1892.5,1892.3,1.51331074]
[1742170184357,0.84543,1892.5,1892.4,1.3367]
[1742170184765,0.84543,1892.5,1892.4,2.06265623]
[1742170187767,0.84543,1892.5,1892.4,0.72595623]
[1742170189267,9.49511,1892.6,1892.0,4.02051074]
[1742170189463,9.49511,1892.6,1892.0,3.2078]
[1742170189464,0.8456,1892.1,1892.0,3.2078]
[1742170189671,4.3076,1892.1,1892.0,4.6607]
[1742170190358,4.3076,1892.1,1892.0,1.4529]
[1742170191065,3.462,1892.1,1891.9,0.00794176]
[1742170191264,0.84564,1892.0,1891.9,1.46084176]
[1742170194371,0.84564,1892.0,1891.9,0.00794176]
[1742170195260,8.37,1892.0,1891.4,0.7015]
[1742170195469,0.84577,1891.8,1891.5,2.18204]
[1742170195765,4.30778,1891.7,1891.6,1.3362]
[1742170197372,0.84582,1891.6,1891.5,1.34414176]
[1742170197670,1.54442,1891.6,1891.5,1.34414176]
[1742170200271,2.88272,1891.6,1891.5,1.34414176]
[1742170201375,3.60452,1891.6,1891.5,1.34414176]
[1742170204279,0.84581,1891.7,1891.5,2.18997176]
[1742170204475,1.3476,1891.8,1891.5,2.03374176]
[1742170204671,4.3088,1891.7,1891.6,1.3821]
[1742170207774,0.8458,1891.7,1891.6,1.3821]
[1742170207978,4.3088,1891.7,1891.6,1.3821]
[1742170208282,4.30878,1891.7,1891.6,1.3821]
[1742170211075,4.30878,1891.7,1891.6,2.22792]